[Event "Live Chess"]
[Site "Chess.com"]
[Date "2023.05.20"]
[Round "-"]
[White "KeithArkell"]
[Black "CeladonFish"]
[Result "1-0"]
[WhiteElo "2615"]
[BlackElo "1030"]
[TimeControl "300"]
[EndTime "11:27:51 PDT"]
[Termination "KeithArkell won by checkmate"]

1. d4 {[%clk 0:04:57.6]} 1... Nf6 {[%clk 0:04:58.1]} 2. Nf3 {[%clk 0:04:55.3]}
2... g6 {[%clk 0:04:57]} 3. c4 {[%clk 0:04:54.5]} 3... Bg7 {[%clk 0:04:55.8]} 4.
g3 {[%clk 0:04:53.9]} 4... O-O {[%clk 0:04:54.7]} 5. Bg2 {[%clk 0:04:53.2]} 5...
d6 {[%clk 0:04:51.8]} 6. O-O {[%clk 0:04:52.2]} 6... Bg4 {[%clk 0:04:48]} 7. Nc3
{[%clk 0:04:50.2]} 7... Nbd7 {[%clk 0:04:46.3]} 8. h3 {[%clk 0:04:48.5]} 8...
Bxf3 {[%clk 0:04:45.2]} 9. Bxf3 {[%clk 0:04:46.8]} 9... c5 {[%clk 0:04:43.3]}
10. Bxb7 {[%clk 0:04:45.4]} 10... Rb8 {[%clk 0:04:42.6]} 11. Bg2 {[%clk
0:04:44.5]} 11... Nh5 {[%clk 0:04:39.5]} 12. d5 {[%clk 0:04:40.2]} 12... Bxc3
{[%clk 0:04:36.6]} 13. bxc3 {[%clk 0:04:39]} 13... Nhf6 {[%clk 0:04:34.8]} 14.
Bh6 {[%clk 0:04:37.7]} 14... Ne5 {[%clk 0:04:32.7]} 15. f4 {[%clk 0:04:29.8]}
15... Nxc4 {[%clk 0:04:30.9]} 16. Qd3 {[%clk 0:04:28.9]} 16... Nb2 {[%clk
0:04:26]} 17. Qa6 {[%clk 0:04:21.4]} 17... Qb6 {[%clk 0:04:17.6]} 18. Qxb6
{[%clk 0:04:18.3]} 18... axb6 {[%clk 0:04:14.8]} 19. Rfb1 {[%clk 0:04:12.7]}
19... Na4 {[%clk 0:04:04.6]} 20. c4 {[%clk 0:04:10.5]} 20... Rfe8 {[%clk
0:04:00.9]} 21. Rb3 {[%clk 0:04:08.5]} 21... Nh5 {[%clk 0:03:50.3]} 22. g4
{[%clk 0:04:06.4]} 22... Ng3 {[%clk 0:03:47.3]} 23. Rxg3 {[%clk 0:04:03.9]}
23... b5 {[%clk 0:03:44.2]} 24. cxb5 {[%clk 0:03:58.1]} 24... Rxb5 {[%clk
0:03:43.5]} 25. Rb3 {[%clk 0:03:57.2]} 25... Reb8 {[%clk 0:03:37.9]} 26. Rab1
{[%clk 0:03:56.4]} 26... Nc3 {[%clk 0:03:33.6]} 27. Rxb5 {[%clk 0:03:54.8]}
27... Rxb5 {[%clk 0:03:32.6]} 28. Rxb5 {[%clk 0:03:53.7]} 28... Nxb5 {[%clk
0:03:32.2]} 29. a4 {[%clk 0:03:52.8]} 29... Na7 {[%clk 0:03:30.4]} 30. a5 {[%clk
0:03:51.8]} 30... c4 {[%clk 0:03:29.8]} 31. Kf2 {[%clk 0:03:50.4]} 31... c3
{[%clk 0:03:29.1]} 32. Ke3 {[%clk 0:03:49.2]} 32... c2 {[%clk 0:03:28.5]} 33.
Kd2 {[%clk 0:03:48.4]} 33... Nb5 {[%clk 0:03:26.7]} 34. Kxc2 {[%clk 0:03:47.2]}
34... Nc7 {[%clk 0:03:24]} 35. e4 {[%clk 0:03:44.6]} 35... e6 {[%clk 0:03:23.4]}
36. dxe6 {[%clk 0:03:42.5]} 36... fxe6 {[%clk 0:03:22.9]} 37. Bf1 {[%clk
0:03:41.4]} 37... Kf7 {[%clk 0:03:18.9]} 38. a6 {[%clk 0:03:40.2]} 38... Nb5
{[%clk 0:03:17.2]} 39. Bxb5 {[%clk 0:03:37.3]} 39... e5 {[%clk 0:03:16]} 40. a7
{[%clk 0:03:35.5]} 40... exf4 {[%clk 0:03:14.4]} 41. Bxf4 {[%clk 0:03:34.6]}
41... d5 {[%clk 0:03:13.4]} 42. a8=Q {[%clk 0:03:33.6]} 42... g5 {[%clk
0:03:12.8]} 43. Qxd5+ {[%clk 0:03:32.3]} 43... Kg6 {[%clk 0:03:11.8]} 44. Be8+
{[%clk 0:03:31.4]} 44... Kh6 {[%clk 0:03:11.2]} 45. Qxg5# {[%clk 0:03:28.9]} 1-0

[Event "Live Chess"]
[Site "Chess.com"]
[Date "2023.05.20"]
[Round "-"]
[White "mightysmasher"]
[Black "BillythekidFellowes"]
[Result "1-0"]
[WhiteElo "2142"]
[BlackElo "2013"]
[TimeControl "300"]
[EndTime "11:27:52 PDT"]
[Termination "mightysmasher won by resignation"]

1. e4 {[%clk 0:04:58.2]} 1... Nc6 {[%clk 0:04:54.5]} 2. d4 {[%clk 0:04:56.7]}
2... d5 {[%clk 0:04:53.9]} 3. exd5 {[%clk 0:04:55.5]} 3... Qxd5 {[%clk
0:04:53.8]} 4. Nf3 {[%clk 0:04:54.8]} 4... e5 {[%clk 0:04:52.1]} 5. c4 {[%clk
0:04:53]} 5... Bb4+ {[%clk 0:04:51.2]} 6. Nc3 {[%clk 0:04:51.6]} 6... Qe4+
{[%clk 0:04:50.8]} 7. Be3 {[%clk 0:04:50.6]} 7... Nf6 {[%clk 0:04:46.1]} 8. d5
{[%clk 0:04:47.5]} 8... Ne7 {[%clk 0:04:40.3]} 9. Qa4+ {[%clk 0:04:45.5]} 9...
Bd7 {[%clk 0:04:25]} 10. Qxb4 {[%clk 0:04:43.3]} 10... Qg4 {[%clk 0:04:24.9]}
11. Nxe5 {[%clk 0:04:38.5]} 11... Qh4 {[%clk 0:04:24]} 12. Nxd7 {[%clk
0:04:36.8]} 12... Nxd7 {[%clk 0:04:23.9]} 13. g3 {[%clk 0:04:32.2]} 13... Qg4
{[%clk 0:04:21.6]} 14. Bg2 {[%clk 0:04:30.9]} 14... Ne5 {[%clk 0:04:16.7]} 15.
O-O {[%clk 0:04:28.3]} 15... h5 {[%clk 0:04:15.6]} 16. Bf4 {[%clk 0:04:25.9]}
16... Nf3+ {[%clk 0:04:13.9]} 17. Bxf3 {[%clk 0:04:24.7]} 17... Qxf3 {[%clk
0:04:13.8]} 18. Rfe1 {[%clk 0:04:23.5]} 18... O-O {[%clk 0:04:11.6]} 19. Qxe7
{[%clk 0:04:21.3]} 19... f6 {[%clk 0:04:10.2]} 20. Qe6+ {[%clk 0:04:19.8]} 20...
Kh8 {[%clk 0:04:08.9]} 21. Qf5 {[%clk 0:04:18]} 21... Rae8 {[%clk 0:04:01.4]}
22. Qg6 {[%clk 0:04:15.1]} 22... Rxe1+ {[%clk 0:03:58.9]} 23. Rxe1 {[%clk
0:04:14.1]} 23... h4 {[%clk 0:03:58.1]} 24. Re7 {[%clk 0:04:10.1]} 24... Rg8
{[%clk 0:03:53.6]} 25. Re3 {[%clk 0:04:05.3]} 1-0

[Event "Live Chess"]
[Site "Chess.com"]
[Date "2023.05.20"]
[Round "-"]
[White "Tushinskiy"]
[Black "ramses-IIG"]
[Result "0-1"]
[WhiteElo "2100"]
[BlackElo "801"]
[TimeControl "300"]
[EndTime "11:27:53 PDT"]
[Termination "ramses-IIG won by checkmate"]

1. d4 {[%clk 0:04:50.4]} 1... d5 {[%clk 0:04:59.9]} 2. c3 {[%clk 0:04:50.3]}
2... Nc6 {[%clk 0:04:55.6]} 3. Nf3 {[%clk 0:04:50.2]} 3... f6 {[%clk 0:04:51.6]}
4. Bf4 {[%clk 0:04:47.7]} 4... e6 {[%clk 0:04:47.7]} 5. Nbd2 {[%clk 0:04:46.1]}
5... Qe7 {[%clk 0:04:47.2]} 6. Bg3 {[%clk 0:04:44.5]} 6... e5 {[%clk 0:04:45.8]}
7. dxe5 {[%clk 0:04:43.3]} 7... fxe5 {[%clk 0:04:45.7]} 8. e4 {[%clk 0:04:42.8]}
8... d4 {[%clk 0:04:41.7]} 9. Bb5 {[%clk 0:04:40.4]} 9... Bd7 {[%clk 0:04:19]}
10. Bxc6 {[%clk 0:04:36.8]} 10... Bxc6 {[%clk 0:04:17.2]} 11. Nxe5 {[%clk
0:04:36.2]} 11... dxc3 {[%clk 0:03:59.8]} 12. bxc3 {[%clk 0:04:29.7]} 12... Qa3
{[%clk 0:03:54.7]} 13. Qh5+ {[%clk 0:04:18.2]} 13... g6 {[%clk 0:03:48.6]} 14.
Nxg6 {[%clk 0:04:15.6]} 14... Qxc3 {[%clk 0:03:41.5]} 15. Nxh8+ {[%clk 0:04:14]}
15... Kd8 {[%clk 0:03:29.7]} 16. Be5 {[%clk 0:04:11.4]} 16... Qd3 {[%clk
0:03:18.1]} 17. O-O-O {[%clk 0:04:08.7]} 17... Ba3+ {[%clk 0:03:06.4]} 18. Bb2
{[%clk 0:04:07.1]} 18... Qc3+ {[%clk 0:03:01.8]} 19. Kb1 {[%clk 0:04:04.5]}
19... Qxb2# {[%clk 0:03:00.2]} 0-1

[Event "Live Chess"]
[Site "Chess.com"]
[Date "2023.05.20"]
[Round "-"]
[White "TDCMF"]
[Black "risinghelios"]
[Result "0-1"]
[WhiteElo "362"]
[BlackElo "1938"]
[TimeControl "300"]
[EndTime "11:27:56 PDT"]
[Termination "risinghelios won by checkmate"]

1. e4 {[%clk 0:04:54.5]} 1... e6 {[%clk 0:04:59.9]} 2. Nf3 {[%clk 0:04:52.1]}
2... d5 {[%clk 0:04:58.3]} 3. e5 {[%clk 0:04:50.8]} 3... c5 {[%clk 0:04:57.4]}
4. Nc3 {[%clk 0:04:46.8]} 4... Nc6 {[%clk 0:04:57.3]} 5. Bb5 {[%clk 0:04:41.5]}
5... Bd7 {[%clk 0:04:55.1]} 6. Bxc6 {[%clk 0:04:35]} 6... Bxc6 {[%clk 0:04:55]}
7. d4 {[%clk 0:04:29.3]} 7... cxd4 {[%clk 0:04:53.2]} 8. Nxd4 {[%clk 0:04:28.4]}
8... Ne7 {[%clk 0:04:52.4]} 9. Nxc6 {[%clk 0:04:27]} 9... Nxc6 {[%clk
0:04:52.3]} 10. Bf4 {[%clk 0:04:20.7]} 10... Bb4 {[%clk 0:04:50.7]} 11. a3
{[%clk 0:04:17.3]} 11... Bxc3+ {[%clk 0:04:48.6]} 12. bxc3 {[%clk 0:04:16.1]}
12... O-O {[%clk 0:04:48.5]} 13. Rb1 {[%clk 0:04:06.2]} 13... Qa5 {[%clk
0:04:47.8]} 14. Bd2 {[%clk 0:04:00.2]} 14... Nxe5 {[%clk 0:04:46.4]} 15. Rxb7
{[%clk 0:03:57.6]} 15... Nc4 {[%clk 0:04:44.7]} 16. Qe2 {[%clk 0:03:17.4]} 16...
Rab8 {[%clk 0:04:39]} 17. Rd7 {[%clk 0:02:56.3]} 17... Rb1+ {[%clk 0:04:36]} 18.
Bc1 {[%clk 0:02:49.1]} 18... Rxc1+ {[%clk 0:04:34.8]} 19. Qd1 {[%clk 0:02:45.4]}
19... Qxc3+ {[%clk 0:04:34.7]} 20. Ke2 {[%clk 0:02:41.5]} 20... Rxc2+ {[%clk
0:04:34.6]} 21. Kf1 {[%clk 0:02:33.5]} 21... Nd2+ {[%clk 0:04:34.5]} 22. Ke1
{[%clk 0:02:27]} 22... Ne4+ {[%clk 0:04:34.4]} 23. Kf1 {[%clk 0:02:25.1]} 23...
Rxf2+ {[%clk 0:04:33.9]} 24. Kg1 {[%clk 0:02:21.6]} 24... Qe3 {[%clk 0:04:33.8]}
25. h3 {[%clk 0:02:19.7]} 25... Re2+ {[%clk 0:04:33.7]} 26. Kh2 {[%clk
0:02:17.6]} 26... Qg3+ {[%clk 0:04:32.4]} 27. Kg1 {[%clk 0:02:14.5]} 27... Re1+
{[%clk 0:04:32.3]} 28. Qxe1 {[%clk 0:02:12.5]} 28... Qxe1+ {[%clk 0:04:32.2]}
29. Kh2 {[%clk 0:02:11.4]} 29... Qg3+ {[%clk 0:04:32.1]} 30. Kg1 {[%clk
0:02:10.4]} 30... Rb8 {[%clk 0:04:32]} 31. Rh2 {[%clk 0:02:08.6]} 31... Rb1#
{[%clk 0:04:31.9]} 0-1

[Event "Live Chess"]
[Site "Chess.com"]
[Date "2023.05.20"]
[Round "-"]
[White "matt1979"]
[Black "Ayush_prahlad_Gupta"]
[Result "1-0"]
[WhiteElo "1453"]
[BlackElo "1802"]
[TimeControl "300"]
[EndTime "11:27:58 PDT"]
[Termination "matt1979 won by checkmate"]

1. f4 {[%clk 0:04:47.2]} 1... e5 {[%clk 0:04:59.9]} 2. fxe5 {[%clk 0:04:45.6]}
2... Nc6 {[%clk 0:04:59.8]} 3. Nf3 {[%clk 0:04:41.4]} 3... Bc5 {[%clk
0:04:59.7]} 4. e3 {[%clk 0:04:36.3]} 4... d6 {[%clk 0:04:59.4]} 5. d4 {[%clk
0:04:33.5]} 5... Nf6 {[%clk 0:04:59.3]} 6. dxc5 {[%clk 0:04:31.5]} 6... Ng4
{[%clk 0:04:49.6]} 7. exd6 {[%clk 0:04:21.2]} 7... O-O {[%clk 0:04:46.6]} 8. Be2
{[%clk 0:04:06.2]} 8... cxd6 {[%clk 0:04:43.1]} 9. cxd6 {[%clk 0:04:05]} 9...
Be6 {[%clk 0:04:26.8]} 10. O-O {[%clk 0:04:01.2]} 10... Qf6 {[%clk 0:04:24]} 11.
Nd4 {[%clk 0:03:50]} 11... Qh4 {[%clk 0:04:20.8]} 12. h3 {[%clk 0:03:46.6]}
12... Nge5 {[%clk 0:04:11.6]} 13. Nxc6 {[%clk 0:03:41.2]} 13... bxc6 {[%clk
0:04:09.1]} 14. Nc3 {[%clk 0:03:28.4]} 14... Qg3 {[%clk 0:04:06.8]} 15. Qe1
{[%clk 0:03:15.1]} 15... Qg6 {[%clk 0:04:02.5]} 16. Kh2 {[%clk 0:02:55.8]} 16...
Bd7 {[%clk 0:03:44.3]} 17. Qg3 {[%clk 0:02:33.8]} 17... Qxd6 {[%clk 0:03:33.6]}
18. Ne4 {[%clk 0:02:19.6]} 18... Qe6 {[%clk 0:03:05.4]} 19. Nf6+ {[%clk
0:02:05.4]} 19... Kh8 {[%clk 0:03:02.5]} 20. Nxd7 {[%clk 0:02:03]} 20... Nxd7
{[%clk 0:03:01.7]} 21. Bd3 {[%clk 0:01:57.9]} 21... f5 {[%clk 0:02:42.7]} 22.
Bd2 {[%clk 0:01:53.4]} 22... Rf6 {[%clk 0:02:37.1]} 23. Bc3 {[%clk 0:01:49.2]}
23... Rg6 {[%clk 0:02:33.9]} 24. Qf4 {[%clk 0:01:46]} 24... Qd5 {[%clk
0:02:24.9]} 25. Rf2 {[%clk 0:01:40.2]} 25... Nf6 {[%clk 0:02:10.9]} 26. Qxf5
{[%clk 0:01:33.2]} 26... Qd6+ {[%clk 0:01:42.1]} 27. Be5 {[%clk 0:01:27.8]}
27... Qb4 {[%clk 0:01:26.7]} 28. Bxf6 {[%clk 0:01:21.9]} 28... Rxf6 {[%clk
0:01:26.6]} 29. Qxh7# {[%clk 0:01:18.9]} 1-0

[Event "Live Chess"]
[Site "Chess.com"]
[Date "2023.05.20"]
[Round "-"]
[White "JamesWallman"]
[Black "kerryman1969"]
[Result "0-1"]
[WhiteElo "758"]
[BlackElo "1148"]
[TimeControl "300"]
[EndTime "11:28:15 PDT"]
[Termination "kerryman1969 won on time"]

1. e4 {[%clk 0:04:57]} 1... e5 {[%clk 0:04:55.8]} 2. Nf3 {[%clk 0:04:54.1]} 2...
Nc6 {[%clk 0:04:52.2]} 3. Bc4 {[%clk 0:04:48.2]} 3... d6 {[%clk 0:04:47.5]} 4.
c3 {[%clk 0:04:44.4]} 4... Nf6 {[%clk 0:04:41]} 5. d3 {[%clk 0:04:41.7]} 5...
Be7 {[%clk 0:04:35.3]} 6. b4 {[%clk 0:04:36.8]} 6... O-O {[%clk 0:04:30]} 7. Qb3
{[%clk 0:04:32.1]} 7... Bd7 {[%clk 0:03:59.6]} 8. Ng5 {[%clk 0:04:23.2]} 8...
Qe8 {[%clk 0:02:46.9]} 9. O-O {[%clk 0:04:16.3]} 9... h6 {[%clk 0:02:43.7]} 10.
Nf3 {[%clk 0:04:10.6]} 10... Bg4 {[%clk 0:02:38.9]} 11. Nh4 {[%clk 0:04:06.9]}
11... Nxe4 {[%clk 0:02:29.2]} 12. Ng6 {[%clk 0:04:03.4]} 12... Nf6 {[%clk
0:02:20.4]} 13. Nxf8 {[%clk 0:03:57.4]} 13... Qxf8 {[%clk 0:02:17]} 14. h3
{[%clk 0:03:46.4]} 14... Bd7 {[%clk 0:02:12.3]} 15. Be3 {[%clk 0:03:31.2]} 15...
a6 {[%clk 0:02:10.1]} 16. Nd2 {[%clk 0:03:26.1]} 16... b5 {[%clk 0:02:07.9]} 17.
Bd5 {[%clk 0:03:20.2]} 17... Nxd5 {[%clk 0:02:04.1]} 18. Qxd5 {[%clk 0:03:15.2]}
18... Rc8 {[%clk 0:02:02]} 19. Qf3 {[%clk 0:03:00.3]} 19... Nd8 {[%clk
0:01:55.1]} 20. Qg3 {[%clk 0:02:53.5]} 20... Ne6 {[%clk 0:01:43.5]} 21. Bxh6
{[%clk 0:02:45.4]} 21... Bf6 {[%clk 0:01:38.5]} 22. Be3 {[%clk 0:02:38.6]} 22...
g6 {[%clk 0:01:26.4]} 23. Ne4 {[%clk 0:02:20.3]} 23... Be7 {[%clk 0:01:22.2]}
24. f4 {[%clk 0:02:10.7]} 24... Qd8 {[%clk 0:01:18.4]} 25. f5 {[%clk 0:02:06.7]}
25... Bh4 {[%clk 0:01:15.2]} 26. Qf3 {[%clk 0:01:45.7]} 26... Ng7 {[%clk
0:01:08.5]} 27. g3 {[%clk 0:01:34.2]} 27... gxf5 {[%clk 0:00:59.5]} 28. Nf2
{[%clk 0:01:19.7]} 28... Be7 {[%clk 0:00:51.8]} 29. Qg2 {[%clk 0:01:02.5]} 29...
c5 {[%clk 0:00:46.6]} 30. bxc5 {[%clk 0:00:55.5]} 30... dxc5 {[%clk 0:00:43]}
31. Rae1 {[%clk 0:00:44.9]} 31... Bc6 {[%clk 0:00:39.8]} 32. Qh2 {[%clk
0:00:38.8]} 32... Qxd3 {[%clk 0:00:36.7]} 33. Nxd3 {[%clk 0:00:31.9]} 33... e4
{[%clk 0:00:32.8]} 34. Nf4 {[%clk 0:00:27.5]} 34... Bd6 {[%clk 0:00:26.6]} 35.
Nh5 {[%clk 0:00:22.3]} 35... Nxh5 {[%clk 0:00:22.6]} 36. Rxf5 {[%clk 0:00:15.1]}
36... Bxg3 {[%clk 0:00:17.8]} 37. Qg2 {[%clk 0:00:10.5]} 37... Nf4 {[%clk
0:00:10.8]} 38. Qxg3+ {[%clk 0:00:06.5]} 38... Ng6 {[%clk 0:00:07]} 0-1

[Event "Live Chess"]
[Site "Chess.com"]
[Date "2023.05.20"]
[Round "-"]
[White "birdseed45"]
[Black "GMHarry-youtube"]
[Result "0-1"]
[WhiteElo "1872"]
[BlackElo "2107"]
[TimeControl "300"]
[EndTime "11:28:17 PDT"]
[Termination "GMHarry-youtube won by resignation"]

1. e4 {[%clk 0:04:59.3]} 1... c5 {[%clk 0:04:58.2]} 2. Nf3 {[%clk 0:04:56.4]}
2... d6 {[%clk 0:04:57.4]} 3. d4 {[%clk 0:04:55.9]} 3... cxd4 {[%clk 0:04:57.3]}
4. Nxd4 {[%clk 0:04:54.9]} 4... Nf6 {[%clk 0:04:56.6]} 5. Nc3 {[%clk 0:04:54.3]}
5... g6 {[%clk 0:04:55.5]} 6. Bg5 {[%clk 0:04:52]} 6... Bg7 {[%clk 0:04:54.4]}
7. Be2 {[%clk 0:04:49.4]} 7... O-O {[%clk 0:04:53.2]} 8. O-O {[%clk 0:04:48.1]}
8... Qa5 {[%clk 0:04:50.8]} 9. Be3 {[%clk 0:04:44.6]} 9... Nc6 {[%clk
0:04:47.2]} 10. f4 {[%clk 0:04:41.8]} 10... Bd7 {[%clk 0:04:42.9]} 11. Bd3
{[%clk 0:04:22.1]} 11... Ng4 {[%clk 0:04:33.8]} 12. Nxc6 {[%clk 0:04:13.7]}
12... bxc6 {[%clk 0:04:28.4]} 13. Qe2 {[%clk 0:04:07.8]} 13... Qb4 {[%clk
0:04:18.9]} 14. f5 {[%clk 0:04:03.3]} 14... Nxe3 {[%clk 0:04:17.2]} 15. Qxe3
{[%clk 0:04:00.8]} 15... Bd4 {[%clk 0:04:16.7]} 0-1

[Event "Live Chess"]
[Site "Chess.com"]
[Date "2023.05.20"]
[Round "-"]
[White "mach247"]
[Black "flyingpuffins"]
[Result "0-1"]
[WhiteElo "1299"]
[BlackElo "1981"]
[TimeControl "300"]
[EndTime "11:28:18 PDT"]
[Termination "flyingpuffins won by resignation"]

1. e4 {[%clk 0:04:58.4]} 1... c5 {[%clk 0:04:58.7]} 2. Nf3 {[%clk 0:04:57]} 2...
g6 {[%clk 0:04:58.1]} 3. d3 {[%clk 0:04:55.3]} 3... d5 {[%clk 0:04:56.4]} 4.
exd5 {[%clk 0:04:54.3]} 4... Qxd5 {[%clk 0:04:56.3]} 5. Nc3 {[%clk 0:04:53.7]}
5... Qd8 {[%clk 0:04:54]} 6. Be2 {[%clk 0:04:41.2]} 6... Bg7 {[%clk 0:04:50.6]}
7. O-O {[%clk 0:04:39]} 7... Nf6 {[%clk 0:04:45.9]} 8. Bd2 {[%clk 0:04:22.6]}
8... O-O {[%clk 0:04:42.3]} 9. Qc1 {[%clk 0:04:10.9]} 9... Nc6 {[%clk
0:04:36.5]} 10. Bh6 {[%clk 0:04:09.5]} 10... Nd4 {[%clk 0:04:33.7]} 11. Bxg7
{[%clk 0:04:07.6]} 11... Nxe2+ {[%clk 0:04:30.3]} 12. Nxe2 {[%clk 0:04:04.5]}
12... Kxg7 {[%clk 0:04:30.2]} 13. Ng3 {[%clk 0:03:59.7]} 13... h5 {[%clk
0:04:20.3]} 14. Qg5 {[%clk 0:03:57]} 14... Qd5 {[%clk 0:04:15.7]} 15. Rfe1
{[%clk 0:03:36.7]} 15... Qxg5 {[%clk 0:04:11.1]} 16. Nxg5 {[%clk 0:03:36.6]}
16... e6 {[%clk 0:04:10.3]} 17. N3e4 {[%clk 0:03:27.5]} 17... Nxe4 {[%clk
0:04:05.5]} 18. Rxe4 {[%clk 0:03:27.4]} 18... b6 {[%clk 0:04:05.4]} 19. c3
{[%clk 0:03:19.9]} 19... Bb7 {[%clk 0:04:04.5]} 20. Re3 {[%clk 0:03:13.8]} 20...
Rad8 {[%clk 0:04:03.2]} 21. Rd1 {[%clk 0:03:12.2]} 21... Rd5 {[%clk 0:04:01.7]}
22. Nf3 {[%clk 0:03:07.9]} 22... Rfd8 {[%clk 0:03:59.9]} 23. d4 {[%clk
0:03:05.8]} 23... cxd4 {[%clk 0:03:52.4]} 24. Rxd4 {[%clk 0:02:59.4]} 24... Rxd4
{[%clk 0:03:46.4]} 25. Nxd4 {[%clk 0:02:55.1]} 25... Kf6 {[%clk 0:03:37.3]} 26.
Kf1 {[%clk 0:01:59.6]} 26... Ba6+ {[%clk 0:03:07.4]} 27. Ke1 {[%clk 0:01:52.2]}
27... Bb7 {[%clk 0:03:04.3]} 28. f3 {[%clk 0:01:49.4]} 28... a6 {[%clk
0:02:56.9]} 29. Ke2 {[%clk 0:01:44.5]} 29... h4 {[%clk 0:02:47.5]} 30. g3 {[%clk
0:01:34.2]} 30... hxg3 {[%clk 0:02:44.5]} 31. hxg3 {[%clk 0:01:34.1]} 31... Rh8
{[%clk 0:02:44.1]} 32. Kd3 {[%clk 0:01:26.6]} 32... Rh2 {[%clk 0:02:29.9]} 33.
Re2 {[%clk 0:01:25.9]} 33... Rh3 {[%clk 0:02:29]} 34. Rg2 {[%clk 0:00:48.7]}
34... e5 {[%clk 0:02:19.7]} 35. Ne2 {[%clk 0:00:30.9]} 35... Bxf3 {[%clk
0:02:18.2]} 36. Rf2 {[%clk 0:00:29.6]} 36... e4+ {[%clk 0:02:16.9]} 37. Ke3
{[%clk 0:00:27.4]} 37... Ke5 {[%clk 0:02:10.8]} 38. Ng1 {[%clk 0:00:14.5]} 38...
Rxg3 {[%clk 0:02:09]} 39. Nxf3+ {[%clk 0:00:14]} 39... Rxf3+ {[%clk 0:02:07.1]}
40. Rxf3 {[%clk 0:00:09.2]} 40... exf3 {[%clk 0:02:07]} 41. Kxf3 {[%clk
0:00:08.8]} 41... Kd5 {[%clk 0:02:06.4]} 42. b3 {[%clk 0:00:05.4]} 42... f5
{[%clk 0:02:04.3]} 0-1

[Event "Live Chess"]
[Site "Chess.com"]
[Date "2023.05.20"]
[Round "-"]
[White "VovaOvchar1990"]
[Black "ameetghasi100"]
[Result "0-1"]
[WhiteElo "1202"]
[BlackElo "2722"]
[TimeControl "300"]
[EndTime "11:28:19 PDT"]
[Termination "ameetghasi100 won by resignation"]

1. e4 {[%clk 0:04:57.9]} 1... c5 {[%clk 0:04:59.9]} 2. Bc4 {[%clk 0:04:56.5]}
2... e6 {[%clk 0:04:58.3]} 3. Nf3 {[%clk 0:04:54.8]} 3... a6 {[%clk 0:04:57.1]}
4. c3 {[%clk 0:04:51.9]} 4... b5 {[%clk 0:04:55.7]} 5. Bb3 {[%clk 0:04:50.6]}
5... Bb7 {[%clk 0:04:55.6]} 6. d3 {[%clk 0:04:48.8]} 6... Nf6 {[%clk 0:04:55]}
7. O-O {[%clk 0:04:47.4]} 7... Be7 {[%clk 0:04:52.2]} 8. h3 {[%clk 0:04:46]}
8... d6 {[%clk 0:04:50.3]} 9. Bg5 {[%clk 0:04:39.8]} 9... Nbd7 {[%clk
0:04:49.6]} 10. Re1 {[%clk 0:04:34.5]} 10... Qc7 {[%clk 0:04:48.9]} 11. Nbd2
{[%clk 0:04:22.3]} 11... h6 {[%clk 0:04:43.8]} 12. Bh4 {[%clk 0:04:20.7]} 12...
g5 {[%clk 0:04:37.7]} 13. Bg3 {[%clk 0:04:19]} 13... Nh5 {[%clk 0:04:37.1]} 14.
Bh2 {[%clk 0:04:17.1]} 14... Rg8 {[%clk 0:04:36.7]} 15. g4 {[%clk 0:03:48.1]}
15... Nf4 {[%clk 0:04:34]} 16. Bxf4 {[%clk 0:03:14]} 16... gxf4 {[%clk
0:04:33.9]} 17. Kg2 {[%clk 0:03:13.4]} 17... h5 {[%clk 0:04:31.6]} 18. g5 {[%clk
0:02:52.9]} 18... Ne5 {[%clk 0:04:29.1]} 19. Nxe5 {[%clk 0:02:46.9]} 19... Rxg5+
{[%clk 0:04:26.6]} 20. Kf3 {[%clk 0:02:38.1]} 20... dxe5 {[%clk 0:04:24.4]} 21.
Rg1 {[%clk 0:02:35.9]} 21... O-O-O {[%clk 0:04:23.2]} 22. Rxg5 {[%clk
0:02:34.1]} 22... Bxg5 {[%clk 0:04:23.1]} 23. Qg1 {[%clk 0:02:33.3]} 23... Qe7
{[%clk 0:04:17.8]} 24. Qg2 {[%clk 0:02:23.5]} 24... Rxd3+ {[%clk 0:04:08.8]} 25.
Ke2 {[%clk 0:02:21.2]} 25... f3+ {[%clk 0:04:06.9]} 26. Qxf3 {[%clk 0:02:18.7]}
26... Rxf3 {[%clk 0:04:04.7]} 27. Kxf3 {[%clk 0:02:18.2]} 27... Bxd2 {[%clk
0:04:00.8]} 0-1

[Event "Live Chess"]
[Site "Chess.com"]
[Date "2023.05.20"]
[Round "-"]
[White "DerbyKnight"]
[Black "Andysav3"]
[Result "0-1"]
[WhiteElo "1658"]
[BlackElo "1698"]
[TimeControl "300"]
[EndTime "11:28:20 PDT"]
[Termination "Andysav3 won by resignation"]

1. d4 {[%clk 0:04:58.3]} 1... Nf6 {[%clk 0:04:58.3]} 2. Nf3 {[%clk 0:04:55.9]}
2... e6 {[%clk 0:04:53.7]} 3. Nc3 {[%clk 0:04:53.7]} 3... d5 {[%clk 0:04:48.2]}
4. Bf4 {[%clk 0:04:49.9]} 4... Be7 {[%clk 0:04:44.6]} 5. e3 {[%clk 0:04:46.6]}
5... O-O {[%clk 0:04:42.9]} 6. Nb5 {[%clk 0:04:42.1]} 6... Na6 {[%clk
0:04:40.5]} 7. h3 {[%clk 0:04:33.8]} 7... c6 {[%clk 0:04:22.2]} 8. Nc3 {[%clk
0:04:26]} 8... b5 {[%clk 0:04:13.6]} 9. a4 {[%clk 0:04:09.2]} 9... b4 {[%clk
0:03:59.3]} 10. Na2 {[%clk 0:03:59.4]} 10... c5 {[%clk 0:03:54.3]} 11. dxc5
{[%clk 0:03:51.4]} 11... Bxc5 {[%clk 0:03:32.3]} 12. Bb5 {[%clk 0:03:41.2]}
12... Nc7 {[%clk 0:03:28.1]} 13. Bc6 {[%clk 0:03:39.3]} 13... Rb8 {[%clk
0:03:23.8]} 14. a5 {[%clk 0:03:34.8]} 14... Ba6 {[%clk 0:03:14.6]} 15. Ne5
{[%clk 0:03:22.6]} 15... Bd6 {[%clk 0:02:41.3]} 16. Nd3 {[%clk 0:02:53.8]} 16...
Bxf4 {[%clk 0:02:27.2]} 17. exf4 {[%clk 0:02:45.9]} 17... Qd6 {[%clk 0:02:22.8]}
18. Ne5 {[%clk 0:02:37.5]} 18... Rfd8 {[%clk 0:02:08]} 19. Qd4 {[%clk
0:02:18.1]} 19... b3 {[%clk 0:01:58.2]} 20. cxb3 {[%clk 0:02:09.5]} 20... Rxb3
{[%clk 0:01:56.4]} 21. Nc1 {[%clk 0:01:57.8]} 21... Rb4 {[%clk 0:01:49.1]} 22.
Qe3 {[%clk 0:01:45.6]} 22... Re4 {[%clk 0:01:47.7]} 0-1